bitfinex/quotes_ETHUSD_20220111
["timestamp","ask_amount","ask_price","bid_price","bid_amount"]
[1641921976629,1.08528151,3211.2,3210.7,0.373]
[1641921977037,0.08046316,3211.1,3210.7,0.373]
[1641921977328,1.08528151,3211.2,3210.7,0.373]
[1641921977329,0.06427253,3210.9,3210.7,0.373]
[1641921977535,4.00302186,3211.7,3208.4,3.03479203]
[1641921977536,1.1449049,3210.7,3210.0,0.373]
[1641921977729,1.09639867,3210.7,3210.0,0.373]
[1641921977984,1.09639867,3210.7,3208.4,4.666]
[1641921977985,0.06255283,3210.6,3209.3,18.12]
[1641921978285,1.09639867,3210.7,3209.2,0.373]
[1641921978482,0.99926177,3209.3,3209.2,0.373]
[1641921979390,6.11,3210.2,3209.2,0.373]
[1641921979587,6.6635417,3210.2,3209.3,18.12]
[1641921980187,6.6635417,3210.2,3209.4,0.00415167]
[1641921980390,5.2,3209.4,3208.9,0.373]
[1641921980587,5.2,3209.4,3208.1,0.373]
[1641921980588,1.1335094,3208.4,3208.1,0.373]
[1641921980788,1.1335094,3208.4,3208.1,0.323]
[1641921980991,3.7381,3210.1,3208.2,18.12]
[1641921981192,3.7381,3210.1,3208.4,18.12]
[1641921981390,7.9048394,3210.1,3208.6,0.01209622]
[1641921981627,6.11,3210.2,3208.7,0.373]
[1641921981628,0.54405591,3209.2,3208.7,0.373]
[1641921981830,4.1667394,3210.1,3208.7,0.373]
[1641921982036,0.97418596,3208.9,3208.7,0.373]
[1641921982427,4.1667394,3210.1,3208.7,0.373]
[1641921982628,4.1667394,3210.1,3208.1,18.12]
[1641921982629,0.0757041,3210.0,3208.1,0.373]
[1641921982828,0.61939699,3208.1,3207.6,0.373]
[1641921983035,6.11,3208.8,3207.6,0.373]
[1641921984230,0.07978213,3208.7,3207.6,0.373]
[1641921984433,6.5,3208.6,3207.6,0.00241294]
[1641921984635,4.23284266,3208.5,3206.9,0.373]
[1641921984829,0.9701616,3207.3,3206.9,0.373]
[1641921985030,0.62197145,3207.9,3206.9,0.373]
[1641921985232,4.23284266,3208.5,3205.9,10.14153761]
[1641921985233,6.5,3207.3,3205.9,10.14153761]
[1641921985528,6.5,3207.3,3203.3,0.45766436]
[1641921985529,6.5,3207.0,3203.3,0.45766436]
[1641921985693,0.01226577,3206.2,3205.3,0.9515]
[1641921985888,1.51210634,3206.1,3203.7,0.01239272]
[1641921986095,22.75666654,3206.0,3203.7,0.01239272]
[1641921986289,22.76876272,3206.0,3203.8,0.01250531]
[1641921986491,0.01270521,3204.4,3202.6,8.87652241]
[1641921986692,1.49371356,3202.7,3202.6,8.84011672]
[1641921987095,0.66331198,3202.7,3202.6,8.84011672]
[1641921987297,0.373,3203.6,3202.6,8.84011672]
[1641921987604,0.01274172,3205.3,3202.7,0.00625266]
[1641921987794,6.55,3205.2,3202.6,0.373]
[1641921987994,8.59167046,3205.1,3202.8,0.0618745]
[1641921988194,4.35,3205.1,3203.3,0.0122085]
[1641921988403,4.35,3205.1,3202.5,0.01689177]
[1641921988404,0.6609663,3203.7,3203.4,0.38562666]
[1641921988594,0.6609663,3203.7,3203.4,0.44750116]
[1641921988798,4.1897906,3205.0,3203.4,0.44750116]
[1641921988799,0.27639994,3204.8,3203.4,0.38562666]
[1641921989005,0.27639994,3204.8,3203.5,0.0170283]
[1641921989006,0.85802918,3203.6,3203.5,0.0170283]
[1641921989228,0.85802918,3203.6,3203.5,0.373]
[1641921989631,0.27639994,3204.8,3203.5,0.373]
[1641921989838,0.54812627,3204.2,3203.5,0.373]
[1641921990330,0.27639994,3204.8,3203.6,0.01299738]
[1641921990536,0.01211426,3205.5,3203.7,0.373]
[1641921990831,1.484921,3206.4,3203.7,0.4348745]
[1641921990832,0.13819997,3205.7,3203.7,0.4348745]
[1641921991029,0.13819997,3205.9,3203.8,4.19814113]
[1641921991231,0.13819997,3205.9,3203.9,1.373]
[1641921991232,0.61466979,3205.7,3203.9,1.373]
[1641921991430,0.13819997,3205.9,3203.9,7.44631698]
[1641921991631,1.484921,3206.7,3204.3,4.67820662]
[1641921991837,0.13819997,3206.6,3204.4,0.373]
[1641921992031,0.13819997,3206.6,3204.4,1.373]
[1641921992438,0.13819997,3206.6,3205.0,0.01254502]
[1641921992634,0.13819997,3206.6,3205.1,5.039]
[1641921992887,0.9761909,3206.2,3205.1,5.639]
[1641921993192,4.1897906,3206.6,3205.5,4.666]
[1641921993392,0.01228223,3207.3,3205.6,0.373]
[1641921993587,0.03849885,3207.4,3205.6,0.373]
[1641921993588,0.01221428,3206.4,3205.6,0.373]
[1641921994087,4.1897906,3207.4,3205.6,0.373]
[1641921994288,0.0128406,3207.4,3205.6,0.673]
[1641921994487,4.2026312,3207.4,3205.6,0.673]
[1641921994687,0.0390334,3207.3,3205.6,0.673]
[1641921994994,4.2026312,3207.4,3205.6,0.373]
[1641921995187,0.989922,3205.8,3205.6,0.373]
[1641921995389,0.0128406,3207.4,3205.6,0.373]
[1641921995987,0.0128406,3207.4,3205.7,0.0170283]
[1641921996197,9.9235,3208.8,3204.7,4.1897906]
[1641921996198,6.11,3208.8,3205.9,6.5]
[1641921996388,1.13337225,3208.3,3206.6,4.666]
[1641921996633,1.13337225,3208.3,3206.7,0.373]
[1641921996833,0.97706068,3207.8,3206.7,1.3]
[1641921997032,0.97706068,3207.8,3206.8,0.373]
[1641921997233,0.04250269,3207.7,3206.8,0.373]
[1641921997433,0.97706068,3207.8,3206.8,0.673]
[1641921997641,0.68117263,3208.1,3206.8,18.793]
[1641921997833,0.01242046,3208.5,3206.9,0.00780849]
[1641921998031,0.05450481,3208.4,3207.0,0.373]
[1641921998234,0.01242046,3208.5,3207.0,0.673]
[1641921998638,6.24819997,3208.8,3207.0,3.32898423]
[1641921998832,1.54468678,3208.2,3207.0,0.6850697]
[1641921999033,1.54468678,3208.2,3207.1,1.0]
[1641921999233,6.24819997,3208.8,3207.0,0.9850697]
[1641921999234,0.03738583,3207.6,3207.2,0.373]
[1641921999433,1.51684782,3207.7,3207.3,0.373]
[1641921999634,0.99216596,3207.7,3207.3,0.373]
[1641922000689,1.75989182,3206.1,3206.0,2.1741]
[1641922000894,1.05614115,3206.1,3206.0,2.5471]
[1641922001092,0.01205471,3207.4,3206.0,2.5471]
[1641922001493,4.01621596,3208.6,3206.0,2.5471]
[1641922001691,0.01288166,3208.2,3206.0,0.373]
[1641922001892,0.59077882,3207.3,3206.0,0.373]
[1641922002093,0.06613869,3207.2,3206.1,18.12]
[1641922002294,0.01288166,3208.2,3206.6,4.666]
[1641922002493,0.01288166,3208.2,3206.7,18.493]
[1641922002695,4.01621596,3208.7,3206.9,0.01281029]
[1641922002900,0.07507422,3208.6,3207.0,0.373]
[1641922003093,0.64985725,3208.4,3207.1,0.373]
[1641922003293,0.59924087,3207.9,3207.2,0.373]
[1641922003494,0.59924087,3207.9,3207.3,0.373]
[1641922003694,0.92986113,3207.7,3207.3,0.373]
[1641922003896,0.03475826,3207.6,3207.3,0.373]
[1641922004146,4.01621596,3208.7,3207.3,0.373]
[1641922004556,0.0123251,3208.5,3207.3,0.373]
[1641922004748,0.62500495,3206.8,3206.6,0.373]
[1641922004949,0.81489539,3207.4,3206.6,0.373]
[1641922005349,4.01621596,3208.7,3206.6,0.373]
[1641922005555,4.01621596,3208.7,3206.7,4.8]
[1641922005759,0.13819997,3208.8,3206.8,0.3771842]
[1641922005949,0.13819997,3208.8,3206.8,0.373]
[1641922006151,0.13819997,3208.8,3206.9,18.12]
[1641922006350,1.1902,3209.3,3207.9,0.01232717]
[1641922006549,1.1902,3209.3,3208.0,0.373]
[1641922006951,0.55954411,3208.2,3208.0,0.373]
[1641922007357,0.55954411,3208.2,3207.4,0.373]
[1641922007550,5.20641596,3209.3,3207.4,0.373]
[1641922008195,5.20641596,3209.3,3207.5,0.0039981]
[1641922008386,5.20641596,3209.3,3207.4,0.373]
[1641922008588,1.37854712,3207.6,3207.4,0.373]
[1641922008791,1.37854712,3207.6,3206.1,0.373]
[1641922008988,1.15315953,3206.7,3206.1,0.373]
[1641922009192,29.71223922,3209.1,3206.1,0.373]
[1641922009388,0.373,3209.0,3206.1,0.373]
[1641922009987,0.65922441,3207.2,3206.1,0.373]
[1641922010387,0.27639994,3207.9,3206.1,0.373]
[1641922010592,0.27639994,3207.9,3206.1,0.38580908]
[1641922010793,0.27639994,3207.9,3206.1,0.68580908]
[1641922011189,7.96326769,3209.0,3206.2,18.12]
[1641922011389,0.89473545,3207.9,3206.2,1.37225713]
[1641922011638,1.72767063,3206.4,3206.2,0.3]
[1641922011836,0.27639994,3208.3,3206.2,0.373]
[1641922012236,0.27639994,3208.3,3206.2,0.673]
[1641922012436,0.27639994,3208.3,3206.3,0.00585504]
[1641922012938,1.63364921,3205.9,3205.8,0.373]
[1641922013139,0.30833908,3208.3,3205.4,0.373]
[1641922013345,0.06851879,3208.2,3205.4,0.373]
[1641922013537,0.27639994,3208.3,3205.4,0.373]
[1641922013738,0.05368388,3208.2,3205.4,0.373]
[1641922013938,0.05368388,3208.2,3205.5,0.0170283]
[1641922013939,2.65453262,3208.2,3205.5,0.0170283]
[1641922014139,0.05609954,3207.0,3205.4,0.373]
[1641922014337,0.0701262,3206.4,3205.4,0.373]
[1641922014837,1.13959715,3206.5,3205.4,0.673]
[1641922015040,5.69309179,3208.1,3205.4,0.673]
[1641922015239,4.55024075,3208.1,3205.4,0.7089184]
[1641922015492,4.55024075,3208.1,3205.4,0.673]
[1641922015691,8.14260068,3208.5,3205.4,0.673]
[1641922016090,0.95068675,3206.4,3205.4,0.673]
[1641922016295,0.08060569,3208.2,3205.4,0.673]
[1641922016494,2.65438379,3208.0,3205.4,0.673]
[1641922016794,3.98285496,3207.9,3205.4,0.673]
[1641922017192,2.65438379,3208.0,3205.4,0.673]
[1641922017193,2.65438379,3208.0,3205.4,0.70495665]
[1641922017396,2.65438379,3208.0,3206.2,4.666]
[1641922017693,2.65438379,3208.1,3206.3,19.493]
[1641922018396,0.82420916,3207.0,3206.3,19.493]
[1641922018993,3.98285496,3208.5,3206.3,19.493]
[1641922019252,0.08466544,3208.2,3206.3,1.373]
[1641922019452,0.6756537,3207.4,3206.3,1.373]
[1641922019851,0.64030664,3206.8,3206.3,0.373]
[1641922020052,3.98285496,3208.5,3205.7,0.373]
[1641922020053,0.06947109,3206.7,3205.7,0.373]
[1641922020253,0.06947109,3206.7,3203.9,0.03858399]
[1641922020254,1.68100268,3205.0,3204.8,0.373]
[1641922020455,0.98439383,3205.0,3204.8,0.373]
[1641922020652,0.98439383,3205.0,3204.3,3.0]
[1641922021056,0.05361336,3204.9,3204.3,3.0]
[1641922021252,0.98439383,3205.0,3204.4,0.0170283]
[1641922021454,0.03057806,3206.8,3204.3,3.0]
[1641922021656,11.64895496,3207.0,3204.4,0.0170283]
[1641922021854,4.03554958,3206.9,3204.0,0.373]
[1641922022053,4.03554958,3206.9,3204.1,0.373]
[1641922022253,3.98285496,3206.9,3204.2,0.373]
[1641922022451,3.98285496,3206.9,3204.3,0.373]
[1641922022651,0.86960544,3205.3,3204.4,0.373]
[1641922022894,3.98285496,3206.9,3204.5,0.373]
[1641922023084,7.7059073,3207.0,3204.6,0.373]
[1641922023285,0.13819997,3206.8,3204.7,0.373]
[1641922023484,0.71399552,3206.7,3204.8,0.373]
[1641922023690,0.71399552,3206.7,3203.6,0.01291937]
[1641922023691,3.98285496,3206.6,3204.5,0.373]
[1641922023885,3.98285496,3206.6,3203.6,0.01291937]
[1641922023886,3.98285496,3206.6,3204.0,0.373]
[1641922024090,0.58058122,3204.2,3204.0,0.373]
[1641922024386,0.58058122,3204.2,3202.9,0.25]
[1641922024387,0.04894491,3204.0,3202.9,0.25]
[1641922024586,0.84896113,3203.4,3202.9,0.25]
[1641922024786,0.01204266,3204.8,3202.9,0.25]
[1641922024984,0.373,3205.8,3203.0,0.00931796]
[1641922025188,1.2294,3206.2,3203.0,0.38231796]
[1641922025189,4.35585496,3206.1,3203.0,0.38231796]
[1641922025384,4.35585496,3206.1,3203.0,0.373]
[1641922025585,4.25585496,3206.1,3204.0,3.2]
[1641922025785,1.78169564,3204.1,3204.0,3.2]
[1641922026193,2.66796032,3206.0,3204.0,3.1250262]
[1641922027034,2.66796032,3206.0,3204.1,0.373]
[1641922027035,0.99865174,3205.6,3204.1,0.373]
[1641922027236,2.66796032,3206.0,3204.1,0.373]
[1641922027237,2.6553197,3206.0,3204.2,18.12]
[1641922027436,2.6553197,3206.0,3204.3,0.373]
[1641922027634,2.6553197,3206.0,3204.4,0.373]
[1641922027835,2.71069989,3205.9,3204.4,0.373]
[1641922028038,2.6553197,3205.9,3204.4,0.373]
[1641922028236,1.63847609,3205.3,3204.4,0.373]
[1641922028639,2.6553197,3205.9,3204.4,0.373]
[1641922028640,1.60142335,3204.8,3204.4,0.373]
[1641922028944,6.24819997,3206.1,3204.4,0.373]
[1641922029939,0.55274245,3203.0,3202.7,2.3948]
[1641922030140,0.91612885,3203.1,3202.7,2.3948]
[1641922030405,0.13819997,3203.6,3201.0,35.0]
[1641922030608,0.04051084,3203.5,3201.4,0.373]
[1641922030809,0.13819997,3203.6,3201.4,0.373]
[1641922030810,0.01242942,3203.4,3201.4,0.373]
[1641922031006,0.01242942,3203.4,3201.5,18.12]
[1641922031205,0.01242942,3203.4,3201.8,0.373]
[1641922031405,0.13819997,3203.6,3202.2,0.373]
[1641922031406,0.05342978,3203.5,3202.2,0.373]
[1641922031611,0.13819997,3203.6,3202.2,0.373]
[1641922031806,0.13819997,3203.6,3202.6,0.0170283]
[1641922032206,0.0537853,3203.5,3202.2,0.373]
[1641922032406,0.99983377,3203.3,3202.2,0.373]
[1641922032706,0.13819997,3203.6,3202.6,0.373]
[1641922032906,0.01202447,3204.1,3202.6,0.373]
[1641922033706,1.46577626,3203.8,3202.6,0.373]
[1641922033905,0.03815025,3203.7,3202.7,0.007]
[1641922034145,0.13819997,3204.6,3202.8,0.373]
[1641922034435,0.13819997,3204.6,3202.8,0.673]
[1641922034633,9.8207,3205.1,3202.8,0.673]
[1641922034842,0.53820703,3204.8,3202.8,0.673]
[1641922035031,0.53820703,3204.8,3202.9,18.12]
[1641922035233,0.53820703,3204.8,3203.0,1.38512436]
[1641922035532,0.08336019,3204.7,3203.0,1.98512436]
[1641922035833,9.8207,3205.1,3203.0,0.98512436]
[1641922036133,0.06728176,3205.0,3203.1,4.666]
[1641922036433,9.8207,3205.1,3203.2,0.373]
[1641922036633,0.01271584,3205.5,3203.3,6.5]
[1641922036838,1.484921,3206.6,3204.7,0.01233195]
[1641922036839,5.5512,3205.9,3204.7,0.01233195]
[1641922037035,5.5512,3205.9,3204.8,0.373]
[1641922037431,5.5512,3205.9,3204.8,0.82108235]
[1641922037634,1.09451079,3205.8,3204.8,0.373]
[1641922037887,0.87376357,3204.9,3204.8,0.373]
[1641922038086,5.56398535,3205.9,3204.8,0.373]
[1641922038286,5.5512,3205.9,3204.8,0.373]
[1641922038786,5.5512,3205.9,3204.9,0.01511075]
[1641922038986,5.5512,3205.9,3204.0,18.12]
[1641922038987,5.5512,3205.9,3205.0,0.373]
[1641922039189,0.03749199,3205.7,3205.1,0.373]
[1641922039398,5.5512,3205.9,3205.1,0.373]
[1641922040095,0.04422062,3205.8,3205.1,0.373]
[1641922040287,5.56387799,3205.9,3205.1,0.373]
[1641922040497,5.5512,3205.9,3205.2,0.00545649]
[1641922040687,5.5512,3205.9,3205.1,0.373]
[1641922041089,0.03710677,3205.8,3205.1,0.373]
[1641922041287,0.63265923,3205.7,3205.1,0.373]
[1641922041489,1.11579847,3205.3,3205.1,0.373]
[1641922041939,5.5512,3205.9,3205.1,0.373]
[1641922042934,1.03141833,3205.2,3205.1,0.373]
[1641922043138,5.5512,3205.9,3205.1,0.373]
[1641922044138,0.08018511,3205.6,3205.1,0.373]
[1641922044541,0.95424862,3205.7,3205.1,0.373]
[1641922044737,5.5512,3205.9,3205.1,0.373]
[1641922045385,0.01275663,3205.7,3205.1,0.373]
[1641922045584,3.52757634,3206.6,3205.2,3.85]
[1641922045786,5.43680354,3207.6,3205.3,0.42114542]
[1641922045985,5.43680354,3207.6,3205.6,0.01221599]
[1641922046183,5.43680354,3207.6,3205.7,0.373]
[1641922046184,3.65645,3207.0,3205.7,0.373]
[1641922046381,0.56049914,3207.1,3205.8,0.04367218]
[1641922046582,0.56049914,3207.1,3205.7,0.373]
[1641922046781,0.69009189,3207.0,3205.8,2.85]
[1641922046981,6.11,3207.4,3205.9,0.373]
[1641922047286,3.98304066,3207.7,3206.4,0.01260092]
[1641922047287,9.96815066,3207.7,3206.4,0.01260092]
[1641922047487,9.96815066,3207.7,3206.5,0.373]
[1641922047683,6.83518,3207.8,3206.6,4.65]
[1641922047880,3.85815066,3208.0,3206.6,4.65]
[1641922047881,3.85815066,3208.0,3206.7,0.373]
[1641922048091,1.02967202,3207.5,3206.7,0.673]
[1641922048283,0.64943532,3207.8,3206.7,0.673]
[1641922048490,1.02265962,3207.3,3206.7,0.373]
[1641922048682,1.0624683,3207.5,3206.7,0.373]
[1641922048883,0.88025433,3207.6,3206.7,0.373]
[1641922049345,0.82375841,3207.6,3206.8,0.0144356]
[1641922049545,6.11,3208.2,3206.9,0.373]
[1641922049747,6.11,3208.2,3207.0,0.373]
[1641922050053,6.11,3208.2,3205.1,0.01202023]
[1641922050054,6.5,3208.1,3205.1,0.01202023]
[1641922050253,0.01263539,3207.5,3205.1,0.01202023]
[1641922050552,0.01263539,3207.5,3205.2,6.873]
[1641922050743,0.01263539,3207.5,3205.4,0.06146082]
[1641922050948,0.01263539,3207.5,3205.5,0.373]
[1641922051646,0.00371606,3207.5,3205.6,6.25]
[1641922051845,1.10988895,3207.1,3205.7,4.473]
[1641922052046,4.05270544,3208.0,3205.8,18.52452129]
[1641922052345,6.11,3208.2,3205.8,18.52452129]
[1641922052346,7.7444342,3208.1,3205.9,0.373]
[1641922052545,2.65505937,3207.4,3205.9,1.673]
[1641922052750,0.56440282,3207.5,3205.9,1.673]
[1641922052988,0.56389758,3206.5,3205.9,0.373]
[1641922053186,4.01333884,3208.0,3205.5,0.04363019]
[1641922053592,1.0,3207.9,3205.5,0.04363019]
[1641922053886,4.31333884,3207.8,3205.5,0.04363019]
[1641922054086,1.01824216,3206.5,3205.5,0.04363019]
[1641922054292,6.11,3207.0,3205.5,0.04363019]
[1641922054488,6.11,3207.0,3205.6,0.07643688]
[1641922054688,6.11,3207.0,3205.5,0.04363019]
[1641922054894,4.01333884,3208.0,3206.1,0.07965993]
[1641922055089,5.185721,3208.1,3206.8,0.01283605]
[1641922055588,1.13901862,3207.7,3207.0,4.25]
[1641922055786,1.484921,3208.1,3207.1,0.373]
[1641922056188,6.11,3208.5,3207.2,5.95]
[1641922056388,6.11,3208.5,3207.6,0.01295179]
[1641922056632,6.11,3208.5,3207.7,0.06844202]
[1641922056832,6.11,3208.5,3207.3,1.373]
[1641922057235,1.48086726,3208.7,3207.4,6.35]
[1641922057433,6.96,3208.8,3207.5,0.46946168]
[1641922057434,0.72873,3208.8,3207.5,0.46946168]
[1641922057635,6.11,3209.1,3207.5,1.673]
[1641922057846,6.11,3209.1,3207.5,0.373]
[1641922057847,0.87875604,3208.0,3207.5,0.373]
[1641922058233,0.93310028,3207.9,3207.5,0.373]
[1641922058832,7.60079612,3209.7,3207.5,0.373]
[1641922058833,6.11,3208.8,3207.7,18.12]
[1641922059034,11.61413496,3209.7,3207.8,0.373]
[1641922059637,11.61413496,3209.7,3207.9,0.07484426]
[1641922059845,3.98099439,3209.7,3208.1,6.5]
[1641922060038,3.98099439,3209.7,3208.6,0.01281589]
[1641922060240,3.98099439,3209.7,3208.7,0.4684399]
[1641922060509,3.98099439,3209.7,3208.7,0.373]
[1641922060705,4.01333884,3209.6,3208.2,0.373]
[1641922060904,0.96128639,3208.6,3208.2,0.373]
[1641922061102,4.01333884,3209.6,3208.2,0.373]
[1641922061303,7.99433323,3210.0,3208.2,0.373]
[1641922061504,7.99433323,3210.0,3208.3,0.07281442]
[1641922061702,8.09433323,3210.0,3208.2,0.373]
[1641922062107,0.4643827,3208.7,3208.2,0.373]
[1641922062302,4.01333884,3209.9,3208.2,0.373]
[1641922062503,0.1,3210.0,3208.2,0.373]
[1641922062902,0.1,3210.0,3208.3,18.12]
[1641922063108,0.1,3210.0,3208.4,0.373]
[1641922063303,0.53262219,3209.2,3208.5,6.5]
[1641922063502,0.1,3210.0,3208.6,0.373]
[1641922063503,0.44537555,3209.3,3208.6,0.373]
[1641922063703,0.1,3210.0,3208.6,19.793]
[1641922063903,7.76599439,3210.5,3209.1,0.01263033]
[1641922064147,7.76599439,3210.5,3209.2,0.373]
[1641922064342,3.98099439,3210.5,3209.2,0.373]
[1641922064542,0.52109329,3209.6,3209.2,0.373]
[1641922064742,10.09099439,3210.9,3209.4,0.10254149]
[1641922064941,10.09099439,3210.9,3209.4,0.373]
[1641922065747,6.11,3210.9,3209.4,18.493]
[1641922065942,0.48100373,3210.3,3209.4,18.493]
[1641922066142,6.11,3210.9,3209.5,6.4]
[1641922066343,6.11,3210.9,3210.1,0.1010915]
[1641922066548,4.8832,3211.0,3210.4,6.55]
[1641922066743,3.98099439,3211.3,3210.6,18.12]
[1641922066942,3.98099439,3211.4,3210.7,0.373]
[1641922067143,1.48533857,3211.7,3210.9,2.75]
[1641922067144,0.53927602,3211.1,3210.9,2.75]
[1641922067344,1.48533857,3211.7,3210.2,0.13819997]
[1641922067345,0.83262992,3211.4,3211.0,0.373]
[1641922067544,0.83262992,3211.4,3211.1,0.373]
[1641922067743,0.86461899,3210.4,3209.9,0.373]
[1641922068190,0.86461899,3210.4,3210.0,0.10055021]
[1641922068392,3.9234836,3211.6,3210.0,6.55]
[1641922068589,6.11,3211.8,3210.1,0.47554149]
[1641922068798,0.03444254,3212.2,3210.1,0.47554149]
[1641922068988,0.03444254,3212.2,3210.1,1.47554149]
[1641922069187,0.03444254,3212.2,3210.1,18.493]
[1641922069487,1.15506065,3211.7,3210.1,19.793]
[1641922069687,0.55055369,3211.6,3210.2,0.08690666]
[1641922069888,0.55055369,3211.6,3210.4,18.12]
[1641922070091,1.15506065,3211.7,3210.5,1.373]
[1641922070287,1.15506065,3211.7,3210.6,0.373]
[1641922070487,1.15506065,3211.7,3210.7,0.373]
[1641922070689,0.03444254,3212.2,3210.8,0.373]
[1641922070896,0.03444254,3212.2,3210.9,0.373]
[1641922071191,0.48006728,3211.3,3211.1,0.08404014]
[1641922071391,0.48006728,3211.3,3210.5,18.12]
[1641922071392,0.03444254,3212.2,3211.3,6.62275307]
[1641922071645,0.03444254,3212.2,3211.5,0.08370283]
[1641922071839,0.03444254,3212.2,3211.6,0.373]
[1641922072140,1.48533857,3212.7,3211.8,0.05426277]
[1641922072341,1.48533857,3212.7,3211.9,0.373]
[1641922072538,2.23245054,3213.0,3212.0,6.55]
[1641922072838,1.48345152,3213.2,3212.1,0.47139739]
[1641922073138,1.48345152,3213.2,3212.1,19.793]
[1641922073339,1.48345152,3213.2,3212.2,18.12]
[1641922073544,1.48345152,3213.2,3212.3,1.373]
[1641922073740,1.48345152,3213.2,3212.4,18.12]
[1641922073938,2.23245054,3213.4,3212.5,0.373]
[1641922074138,3.67240544,3214.1,3212.6,6.55]
[1641922074343,9.29906029,3214.0,3212.7,0.373]
[1641922074541,9.29906029,3214.0,3212.8,0.373]
[1641922074739,9.29906029,3214.0,3212.9,0.373]
[1641922074740,0.53358713,3213.9,3212.9,0.373]
[1641922074940,0.53358713,3213.9,3213.0,0.373]
[1641922075141,1.04841744,3213.5,3213.0,0.373]
[1641922075386,2.24199197,3214.7,3213.0,0.373]
[1641922075588,2.24199197,3214.7,3213.1,0.06564281]
[1641922075888,2.24199197,3214.7,3211.8,0.1232]
[1641922075889,2.19199197,3214.7,3213.2,0.373]
[1641922076092,2.19199197,3214.7,3213.3,0.373]
[1641922076292,2.19199197,3214.7,3213.4,0.10211373]
[1641922076490,0.972036,3215.0,3213.5,0.373]
[1641922076893,0.972036,3215.0,3213.6,0.373]
[1641922077092,0.01253735,3216.9,3214.3,0.01262752]
[1641922077293,0.01253735,3216.9,3214.4,0.59048794]
[1641922077490,0.9643607,3216.3,3214.5,6.55]
[1641922077688,1.00689405,3215.8,3214.6,1.44072951]
[1641922077895,0.01253735,3216.9,3214.6,1.44072951]
[1641922077896,1.02685756,3215.3,3214.6,0.673]
[1641922078090,3.87005518,3215.8,3214.6,0.673]
[1641922078290,3.87005518,3215.8,3214.6,0.373]
[1641922078490,0.52287494,3215.5,3214.6,0.673]
[1641922078695,4.00934173,3216.9,3214.8,6.55]
[1641922078991,4.00934173,3216.9,3214.9,0.373]
[1641922079237,0.92253111,3215.1,3214.9,0.373]
[1641922079440,4.00934173,3216.9,3214.9,0.373]
[1641922079639,0.47845112,3215.0,3213.9,0.373]
[1641922079840,3.99680438,3214.9,3213.6,0.04560179]
[1641922080041,0.47845112,3215.0,3213.6,0.04560179]
[1641922080339,0.47284307,3213.1,3213.0,1.55569]
[1641922080540,3.99680438,3214.9,3212.5,3.0]
[1641922080743,0.33407148,3215.0,3212.5,3.0]
[1641922080744,1.0,3214.8,3212.5,3.0]
[1641922081141,3.99680438,3215.2,3212.5,3.0]
[1641922081343,3.99680438,3215.2,3212.6,0.07721809]
[1641922081344,1.3,3215.1,3212.6,0.07721809]
[1641922081537,3.99680438,3215.0,3212.9,0.77792]
[1641922081738,4.02899441,3215.2,3213.0,0.7779]
[1641922081939,3.99680438,3215.2,3213.0,0.7779]
[1641922082140,2.65011597,3215.1,3213.1,0.01203231]
[1641922082339,2.65011597,3215.1,3213.2,0.373]
[1641922082541,2.65011597,3215.1,3213.4,0.77777]
[1641922082740,0.45324865,3213.8,3213.4,1.15077]
[1641922083200,0.45324865,3213.8,3213.7,0.77774]
[1641922084008,0.45324865,3213.8,3212.2,0.373]
[1641922084201,4.86333079,3213.9,3212.4,0.778]
[1641922084402,0.373,3215.3,3212.7,0.77805]
[1641922084403,0.778097,3215.1,3212.7,0.77805]
[1641922084601,6.63680654,3215.0,3212.7,0.77805]
[1641922084799,5.93680654,3215.0,3212.7,0.77805]
[1641922085001,5.66973844,3215.0,3212.7,0.77805]
[1641922085204,1.5,3214.0,3212.9,1.55583]
[1641922085402,0.45606949,3213.5,3213.1,0.77793]
[1641922085605,1.5,3214.0,3213.1,0.77793]
[1641922085802,1.5,3214.0,3213.2,0.39263438]
[1641922086001,1.5,3214.0,3213.2,0.673]
[1641922086200,5.44845464,3215.1,3213.2,0.373]
[1641922086403,5.44845464,3215.1,3213.3,0.77783]
[1641922086404,1.5,3215.1,3213.3,0.77783]
[1641922086642,0.48041427,3213.7,3213.4,0.673]
[1641922086837,0.48041427,3213.7,3213.5,1.55541]
[1641922087043,0.82355977,3214.0,3213.5,1.92841]
[1641922087336,11.55845464,3215.1,3213.5,1.92841]
[1641922087535,7.61,3215.1,3213.8,0.77777]
[1641922087935,6.1,3215.0,3213.7,0.63875247]
[1641922088136,0.49290562,3214.0,3213.7,0.63875247]
[1641922088335,0.49290562,3214.0,3213.7,0.93875247]
[1641922088639,6.11,3215.1,3213.7,0.93875247]
[1641922088640,6.11,3215.1,3213.9,0.77759]
[1641922088838,6.11,3215.1,3214.4,0.77754]
[1641922089036,6.11,3215.1,3214.4,1.55506]
[1641922089244,6.11,3215.1,3214.4,1.85506]
[1641922089438,8.1545,3215.7,3214.5,0.373]
[1641922089439,0.55095763,3215.6,3214.5,0.373]
[1641922089640,0.89040333,3215.5,3214.5,0.373]
[1641922089838,0.89040333,3215.5,3214.5,1.9277171]
[1641922090037,8.1545,3215.7,3214.5,2.2277171]
[1641922090241,8.1545,3215.7,3214.8,0.7773511]
[1641922090486,8.1545,3215.7,3214.9,0.373]
[1641922090687,8.1545,3215.7,3214.9,0.323]
[1641922090688,6.96,3215.7,3214.9,0.323]
[1641922091092,0.92167791,3215.1,3214.9,0.323]
[1641922091294,0.92167791,3215.1,3214.3,0.373]
[1641922091295,0.58891526,3214.8,3214.3,0.373]
[1641922091488,3.6682,3216.2,3214.3,0.373]
[1641922091689,6.11,3216.1,3214.3,0.373]